[Event "Chinese League Div-A Rapid 2022"]
[Site "Fuling,Chongqing"]
[Date "2022.09.14"]
[Round "7.29"]
[White "Zhou, Guijue"]
[Black "Gu, Xiaobing"]
[Result "1/2-1/2"]
[ECO "B55"]
[WhiteElo "2225"]
[BlackElo "2219"]
[Annotator "NA RC"]
[PlyCount "62"]
[EventDate "2022.09.07"]
[EventType "team-tourn"]
[EventCountry "CHN"]
[SourceTitle "playchess.com"]
[Source "ChessBase"]
[SourceQuality "1"]
[TimeControl "1500+10"]

1. e4 {[%emt 0:00:03]} c5 {[%emt 0:00:01]} 2. Nf3 {[%emt 0:00:02]} d6 {[%emt 0:00:01]} 3. d4 {[%emt 0:00:01]} cxd4 {[%emt 0:00:02]} 4. Nxd4 {[%emt 0:00:02]} Nf6 {[%emt 0:00:02]} 5. f3 {[%emt 0:00:02]} e5 {[%emt 0:01:07]} 6. Nb3 {[%emt 0:00:04]} Be7 {[%emt 0:02:20]} 7. c4 {[%emt 0:00:18]} a5 {[%emt 0:00:38]} 8. Be3 {[%emt 0:01:29]} a4 {[%emt 0:00:27]} 9. N3d2 {[%emt 0:00:08]} Nc6 {[%emt 0:00:03]} 10. Nc3 {[%emt 0:00:07]} Qa5 {[%emt 0:01:22]} 11. Be2 {[%emt 0:00:17]} O-O {[%emt 0:03:59]} 12. O-O {[%emt 0:00:12]} Bd8 {[%emt 0:03:25]} 13. Nd5 {[%emt 0:02:44]} Nxd5 {[%emt 0:01:14]} 14. cxd5 {[%emt 0:00:06]} Bb6 {[%emt 0:00:07]} 15. Bxb6 {[%emt 0:01:21]} Qxb6+ {[%emt 0:00:01]} 16. Kh1 {[%emt 0:00:01]} Nd4 {[%emt 0:00:09]} 17. Nc4 {[%emt 0:00:04]} Qd8 {[%emt 0:00:10]} 18. Bd3 {[%emt 0:00:34]} f5 {[%emt 0:00:33]} 19. f4 {[%emt 0:01:31]} b5 {[%emt 0:01:36]} 20. Ne3 {[%emt 0:01:25]} fxe4 {[%emt 0:00:03]} 21. Bxe4 {[%emt 0:00:20]} Qh4 {[%emt 0:00:59]} 22. g3 {[%emt 0:02:11]} Qh6 {[%emt 0:01:01]} 23. Ng2 {[%emt 0:00:01]} Bh3 {[%emt 0:00:25]} 24. Qd3 {[%emt 0:00:06]} Bg4 {[%emt 0:00:45]} 25. Rf2 {[%emt 0:00:14]} Ra7 {[%emt 0:00:35]} 26. Raf1 {[%emt 0:00:24]} Raf7 {[%emt 0:00:01]} 27. Kg1 {[%emt 0:00:01]} Qh5 {[%emt 0:00:06]} 28. Re1 {[%emt 0:00:56]} Bh3 {[%emt 0:00:28]} 29. Ref1 {[%emt 0:00:53]} Bg4 {[%emt 0:00:33]} 30. Re1 {[%emt 0:00:01]} Bh3 {[%emt 0:00:01]} 31. Ref1 {[%emt 0:00:04]} Bg4 {[%emt 0:00:17]} 1/2-1/2

[Event "Chinese League Div-A Rapid 2022"]
[Site "Fuling,Chongqing"]
[Date "2022.09.14"]
[Round "7.30"]
[White "Zhao, Shengxin"]
[Black "Hu, Yu A."]
[Result "1-0"]
[ECO "E54"]
[WhiteElo "2112"]
[BlackElo "2074"]
[Annotator "NA RC"]
[PlyCount "81"]
[EventDate "2022.09.07"]
[EventType "team-tourn"]
[EventCountry "CHN"]
[SourceTitle "playchess.com"]
[Source "ChessBase"]
[SourceQuality "1"]
[TimeControl "1500+10"]

1. d4 {[%emt 0:00:08]} Nf6 {[%emt 0:00:02]} 2. c4 {[%emt 0:00:07]} e6 {[%emt 0:00:03]} 3. Nc3 {[%emt 0:00:08]} Bb4 {[%emt 0:00:06]} 4. e3 {[%emt 0:00:17]} O-O {[%emt 0:00:12]} 5. Bd3 {[%emt 0:00:05]} d5 {[%emt 0:00:09]} 6. Nf3 {[%emt 0:00:19]} dxc4 {[%emt 0:00:35]} 7. Bxc4 {[%emt 0:00:04]} c5 {[%emt 0:00:01]} 8. O-O {[%emt 0:00:12]} cxd4 {[%emt 0:00:05]} 9. Nxd4 {[%emt 0:00:59]} a6 {[%emt 0:02:37]} 10. Qb3 {[%emt 0:01:02]} Qe7 {[%emt 0:00:09]} 11. a3 {[%emt 0:00:19]} Bd6 {[%emt 0:00:47]} 12. f4 {[%emt 0:04:48]} e5 {[%emt 0:01:32]} 13. Nf3 {[%emt 0:00:43]} Nc6 {[%emt 0:00:46]} 14. Nd5 {[%emt 0:00:38]} Nxd5 {[%emt 0:00:14]} 15. Bxd5 {[%emt 0:00:03]} exf4 {[%emt 0:00:12]} 16. exf4 {[%emt 0:00:08]} Bc5+ {[%emt 0:00:07]} 17. Kh1 {[%emt 0:00:06]} Bg4 {[%emt 0:02:26]} 18. Bd2 {[%emt 0:01:19]} Rad8 {[%emt 0:01:50]} 19. Bc3 {[%emt 0:00:52]} Bxf3 {[%emt 0:01:38]} 20. Bxf3 {[%emt 0:00:09]} Nd4 {[%emt 0:01:38]} 21. Qxb7 {[%emt 0:03:11]} Qh4 {[%emt 0:00:36]} 22. b4 {[%emt 0:01:28]} Rb8 {[%emt 0:04:49]} 23. Qd5 {[%emt 0:06:26]} Nxf3 {[%emt 0:00:42]} 24. Qxf3 {[%emt 0:00:05]} Bd6 {[%emt 0:00:39]} 25. Rad1 {[%emt 0:00:27]} Rbd8 {[%emt 0:00:51]} 26. Be5 {[%emt 0:01:26]} Bxe5 {[%emt 0:00:45]} 27. Rxd8 {[%emt 0:00:23]} Rxd8 {[%emt 0:00:10]} 28. fxe5 {[%emt 0:00:05]} Qe7 {[%emt 0:00:02]} 29. Qe2 {[%emt 0:00:27]} Qe6 {[%emt 0:00:13]} 30. a4 {[%emt 0:01:06]} h6 {[%emt 0:00:12]} 31. b5 {[%emt 0:01:04]} axb5 {[%emt 0:00:08]} 32. axb5 {[%emt 0:01:25]} Rd5 {[%emt 0:00:08]} 33. Re1 {[%emt 0:00:13]} Qb6 {[%emt 0:00:11]} 34. Rb1 {[%emt 0:00:06]} Qe6 {[%emt 0:01:50]} 35. b6 {[%emt 0:00:14]} Rxe5 {[%emt 0:00:01]} 36. Qf1 {[%emt 0:00:23]} Rf5 {[%emt 0:00:11]} 37. Qd1 {[%emt 0:00:10]} Qc8 {[%emt 0:02:59]} 38. b7 {[%emt 0:00:02]} Qb8 {[%emt 0:00:01]} 39. Qd7 {[%emt 0:00:15]} Rc5 {[%emt 0:00:01]} 40. h3 {[%emt 0:00:13]} Rc2 {[%emt 0:00:40]} 41. Re1 {[%emt 0:00:10]} 1-0

[Event "Chinese League Div-A Rapid 2022"]
[Site "Fuling,Chongqing"]
[Date "2022.09.15"]
[Round "8.1"]
[White "Zhao, Jun"]
[Black "Lou, Yiping"]
[Result "0-1"]
[ECO "C50"]
[WhiteElo "2619"]
[BlackElo "2485"]
[Annotator "ChessBase"]
[PlyCount "50"]
[EventDate "2022.09.07"]
[EventType "team-tourn"]
[EventCountry "CHN"]
[SourceTitle "playchess.com"]
[Source "ChessBase"]
[SourceQuality "1"]
[TimeControl "1500+10"]

1. e4 {[%emt 0:00:04]} e5 {[%emt 0:00:01]} 2. Nf3 {[%emt 0:00:03]} Nc6 {[%emt 0:00:02]} 3. Bc4 {[%emt 0:00:19]} Bc5 {[%emt 0:00:10]} 4. d3 {[%emt 0:00:08]} Nf6 {[%emt 0:00:12]} 5. Bg5 {[%emt 0:00:34]} h6 {[%emt 0:00:41]} 6. Bh4 {[%emt 0:00:02]} d6 {[%emt 0:00:14]} 7. a4 {[%emt 0:00:39]} a6 {[%emt 0:00:46]} 8. Nbd2 {[%emt 0:00:16]} Ba7 {[%emt 0:00:40]} 9. c3 {[%emt 0:00:09]} O-O {[%emt 0:01:29]} 10. b4 {[%emt 0:01:27]} g5 {[%emt 0:02:19]} 11. Bg3 {[%emt 0:00:38]} Kg7 {[%emt 0:02:19]} 12. Qe2 {[%emt 0:01:00]} Ne7 {[%emt 0:01:24]} 13. d4 {[%emt 0:06:50]} exd4 {[%emt 0:00:38]} 14. Nxd4 {[%emt 0:00:13]} Ng6 {[%emt 0:00:53]} 15. O-O {[%emt 0:00:17]} Re8 {[%emt 0:02:10]} 16. Bb3 {[%emt 0:01:11]} c5 {[%emt 0:01:20]} 17. bxc5 {[%emt 0:01:31]} dxc5 {[%emt 0:00:37]} 18. Qc4 {[%emt 0:00:11]} Nh8 {[%emt 0:00:56]} 19. e5 {[%emt 0:04:06]} Nh5 {[%emt 0:01:35]} 20. N4f3 {[%emt 0:00:57]} Nxg3 {[%emt 0:00:54]} 21. hxg3 {[%emt 0:00:02]} g4 {[%emt 0:00:11]} 22. Rad1 {[%emt 0:02:05]} gxf3 {[%emt 0:00:52]} 23. Ne4 {[%emt 0:02:05]} Be6 {[%emt 0:00:43]} 24. Rxd8 {[%emt 0:02:27]} Rc8 {[%emt 0:00:45]} 25. Rxe8 {[%emt 0:00:10]} Rxe8 {[%emt 0:00:55]} 0-1

[Event "Chinese League Div-A Rapid 2022"]
[Site "Fuling,Chongqing"]
[Date "2022.09.15"]
[Round "8.2"]
[White "Huang, Renjie"]
[Black "Xu, Yi"]
[Result "1/2-1/2"]
[ECO "B90"]
[WhiteElo "2446"]
[BlackElo "2507"]
[Annotator "ChessBase"]
[PlyCount "49"]
[EventDate "2022.09.07"]
[EventType "team-tourn"]
[EventCountry "CHN"]
[SourceTitle "playchess.com"]
[Source "ChessBase"]
[SourceQuality "1"]
[TimeControl "1500+10"]

1. e4 {[%emt 0:00:02]} c5 {[%emt 0:00:01]} 2. Nf3 {[%emt 0:00:01]} d6 {[%emt 0:00:02]} 3. d4 {[%emt 0:00:01]} cxd4 {[%emt 0:00:01]} 4. Nxd4 {[%emt 0:00:01]} Nf6 {[%emt 0:00:03]} 5. Nc3 {[%emt 0:00:01]} a6 {[%emt 0:00:02]} 6. Bd3 {[%emt 0:00:01]} e5 {[%emt 0:00:35]} 7. Nde2 {[%emt 0:00:01]} Be7 {[%emt 0:00:04]} 8. O-O {[%emt 0:00:03]} O-O {[%emt 0:00:39]} 9. Ng3 {[%emt 0:00:01]} Be6 {[%emt 0:00:26]} 10. Nd5 {[%emt 0:00:09]} Nxd5 {[%emt 0:00:19]} 11. exd5 {[%emt 0:00:01]} Bxd5 {[%emt 0:00:03]} 12. Bxh7+ {[%emt 0:00:01]} Kxh7 {[%emt 0:00:02]} 13. Qxd5 {[%emt 0:00:02]} Nc6 {[%emt 0:00:03]} 14. Nf5 {[%emt 0:00:27]} Kg8 {[%emt 0:06:36]} 15. Rd1 {[%emt 0:00:27]} Qc8 {[%emt 0:01:09]} 16. Qe4 {[%emt 0:01:50]} Rd8 {[%emt 0:04:10]} 17. Bh6 {[%emt 0:01:57]} gxh6 {[%emt 0:03:25]} 18. Qg4+ {[%emt 0:00:01]} Kf8 {[%emt 0:00:28]} 19. Qg7+ {[%emt 0:00:00]} Ke8 {[%emt 0:00:01]} 20. Qg8+ {[%emt 0:00:01]} Bf8 {[%emt 0:03:18]} 21. Nxd6+ {[%emt 0:00:01]} Rxd6 {[%emt 0:00:03]} 22. Rxd6 {[%emt 0:00:01]} Ne7 {[%emt 0:01:26]} 23. Qh8 {[%emt 0:01:19]} Ng6 {[%emt 0:00:13]} 24. Qg8 {[%emt 0:00:01]} Ne7 {[%emt 0:00:01]} 25. Qh8 {[%emt 0:00:02]} 1/2-1/2

[Event "Chinese League Div-A Rapid 2022"]
[Site "Fuling,Chongqing"]
[Date "2022.09.15"]
[Round "8.3"]
[White "Liu, Qingnan"]
[Black "Zhang, Zhong"]
[Result "1-0"]
[ECO "C29"]
[WhiteElo "2542"]
[BlackElo "2617"]
[Annotator "ChessBase"]
[PlyCount "29"]
[EventDate "2022.09.07"]
[EventType "team-tourn"]
[EventCountry "CHN"]
[SourceTitle "playchess.com"]
[Source "ChessBase"]
[SourceQuality "1"]
[TimeControl "1500+10"]

1. e4 {[%emt 0:00:01]} e5 {[%emt 0:00:03]} 2. Nc3 {[%emt 0:00:04]} Nf6 {[%emt 0:00:07]} 3. f4 {[%emt 0:00:01]} d5 {[%emt 0:00:53]} 4. fxe5 {[%emt 0:00:01]} Nxe4 {[%emt 0:00:05]} 5. Qf3 {[%emt 0:00:02]} Nxc3 {[%emt 0:00:28]} 6. bxc3 {[%emt 0:00:02]} Be6 {[%emt 0:00:22]} 7. d4 {[%emt 0:00:18]} Nd7 {[%emt 0:00:23]} 8. Bd3 {[%emt 0:00:17]} c5 {[%emt 0:00:04]} 9. Ne2 {[%emt 0:00:17]} Qb6 {[%emt 0:04:05]} 10. Be3 {[%emt 0:00:43]} g6 {[%emt 0:02:59]} 11. Nf4 {[%emt 0:01:17]} cxd4 {[%emt 0:02:54]} 12. cxd4 {[%emt 0:00:08]} Qa5+ {[%emt 0:04:09]} 13. Ke2 {[%emt 0:00:22]} Nb6 {[%emt 0:00:04]} 14. Nxe6 {[%emt 0:00:08]} fxe6 {[%emt 0:00:01]} 15. Qf6 {[%emt 0:00:01]} 1-0

[Event "Chinese League Div-A Rapid 2022"]
[Site "Fuling,Chongqing"]
[Date "2022.09.15"]
[Round "8.4"]
[White "Ning, Kaiyu"]
[Black "Hu, Yu A."]
[Result "1-0"]
[ECO "D42"]
[WhiteElo "2374"]
[BlackElo "2074"]
[Annotator "ChessBase"]
[PlyCount "129"]
[EventDate "2022.09.07"]
[EventType "team-tourn"]
[EventCountry "CHN"]
[SourceTitle "playchess.com"]
[Source "ChessBase"]
[SourceQuality "1"]
[TimeControl "1500+10"]

1. c4 {[%emt 0:00:02]} e6 {[%emt 0:00:02]} 2. Nf3 {[%emt 0:00:05]} Nf6 {[%emt 0:00:03]} 3. Nc3 {[%emt 0:00:19]} d5 {[%emt 0:00:05]} 4. e3 {[%emt 0:00:02]} c5 {[%emt 0:00:06]} 5. cxd5 {[%emt 0:00:03]} Nxd5 {[%emt 0:02:18]} 6. d4 {[%emt 0:00:28]} Nc6 {[%emt 0:00:31]} 7. Bd3 {[%emt 0:00:07]} Be7 {[%emt 0:00:23]} 8. O-O {[%emt 0:00:06]} Nxc3 {[%emt 0:00:08]} 9. bxc3 {[%emt 0:00:02]} O-O {[%emt 0:00:03]} 10. c4 {[%emt 0:01:10]} cxd4 {[%emt 0:00:47]} 11. exd4 {[%emt 0:00:03]} b6 {[%emt 0:00:06]} 12. Bb2 {[%emt 0:00:24]} Bb7 {[%emt 0:00:16]} 13. Rc1 {[%emt 0:00:04]} Rc8 {[%emt 0:00:52]} 14. Bb1 {[%emt 0:00:26]} Bf6 {[%emt 0:00:35]} 15. Qe2 {[%emt 0:02:57]} Qe7 {[%emt 0:00:57]} 16. Rfe1 {[%emt 0:06:26]} Qd6 {[%emt 0:03:33]} 17. Rcd1 {[%emt 0:08:05]} Ba6 {[%emt 0:01:40]} 18. d5 {[%emt 0:01:21]} exd5 {[%emt 0:00:09]} 19. Qc2 {[%emt 0:00:55]} g6 {[%emt 0:01:38]} 20. Rxd5 {[%emt 0:00:03]} Nb4 {[%emt 0:00:32]} 21. Rxd6 {[%emt 0:00:11]} Nxc2 {[%emt 0:00:01]} 22. Bxf6 {[%emt 0:00:01]} Nxe1 {[%emt 0:00:02]} 23. Nxe1 {[%emt 0:00:03]} Rxc4 {[%emt 0:00:10]} 24. Rd1 {[%emt 0:00:23]} Rc6 {[%emt 0:00:15]} 25. Bb2 {[%emt 0:00:27]} Be2 {[%emt 0:00:12]} 26. Rd2 {[%emt 0:01:54]} Re8 {[%emt 0:01:11]} 27. f3 {[%emt 0:00:17]} Bc4 {[%emt 0:00:41]} 28. Kf2 {[%emt 0:01:45]} h5 {[%emt 0:00:30]} 29. Nc2 {[%emt 0:00:38]} Rce6 {[%emt 0:00:08]} 30. Nd4 {[%emt 0:00:12]} Re1 {[%emt 0:00:07]} 31. Be4 {[%emt 0:00:12]} Rf1+ {[%emt 0:00:42]} 32. Kg3 {[%emt 0:00:00]} Bxa2 {[%emt 0:01:07]} 33. Nc6 {[%emt 0:00:01]} a5 {[%emt 0:00:51]} 34. Bd4 {[%emt 0:00:36]} Be6 {[%emt 0:01:29]} 35. Bxb6 {[%emt 0:00:03]} a4 {[%emt 0:00:06]} 36. Bc5 {[%emt 0:00:02]} Rc1 {[%emt 0:01:17]} 37. Ba3 {[%emt 0:00:29]} Rc3 {[%emt 0:00:07]} 38. Bb2 {[%emt 0:00:04]} Rc5 {[%emt 0:02:17]} 39. Nb4 {[%emt 0:00:50]} Rb8 {[%emt 0:01:22]} 40. Na6 {[%emt 0:00:07]} h4+ {[%emt 0:01:30]} 41. Kf2 {[%emt 0:00:07]} Rxb2 {[%emt 0:00:43]} 42. Rxb2 {[%emt 0:00:04]} Ra5 {[%emt 0:00:01]} 43. Nb4 {[%emt 0:00:23]} a3 {[%emt 0:00:02]} 44. Rb1 {[%emt 0:00:11]} a2 {[%emt 0:00:26]} 45. Ra1 {[%emt 0:00:01]} Rb5 {[%emt 0:00:37]} 46. Nc6 {[%emt 0:00:18]} f5 {[%emt 0:00:26]} 47. Nd4 {[%emt 0:00:13]} Rb2+ {[%emt 0:00:01]} 48. Ke3 {[%emt 0:00:08]} Bf7 {[%emt 0:00:22]} 49. Bc2 {[%emt 0:00:07]} Rb4 {[%emt 0:00:17]} 50. f4 {[%emt 0:00:06]} Kf8 {[%emt 0:00:53]} 51. g3 {[%emt 0:00:07]} hxg3 {[%emt 0:00:08]} 52. hxg3 {[%emt 0:00:01]} Rb8 {[%emt 0:00:44]} 53. Kd3 {[%emt 0:00:05]} Ra8 {[%emt 0:00:15]} 54. Bb3 {[%emt 0:00:14]} Ra3 {[%emt 0:00:03]} 55. Kc3 {[%emt 0:00:01]} Bxb3 {[%emt 0:00:02]} 56. Nxb3 {[%emt 0:00:02]} Kf7 {[%emt 0:00:03]} 57. Kb2 {[%emt 0:00:36]} Ra4 {[%emt 0:00:05]} 58. Rxa2 {[%emt 0:00:05]} Rxa2+ {[%emt 0:00:01]} 59. Kxa2 {[%emt 0:00:01]} g5 {[%emt 0:00:10]} 60. Nd4 {[%emt 0:00:12]} gxf4 {[%emt 0:00:04]} 61. gxf4 {[%emt 0:00:03]} Kg6 {[%emt 0:00:08]} 62. Kb3 {[%emt 0:00:09]} Kh5 {[%emt 0:00:02]} 63. Kc4 {[%emt 0:00:12]} Kg4 {[%emt 0:00:01]} 64. Ne6 {[%emt 0:00:05]} Kf3 {[%emt 0:00:04]} 65. Kd5 {[%emt 0:00:01]} 1-0

[Event "Chinese League Div-A Rapid 2022"]
[Site "Fuling,Chongqing"]
[Date "2022.09.15"]
[Round "8.5"]
[White "Ni, Shiqun"]
[Black "Gu, Xiaobing"]
[Result "1/2-1/2"]
[ECO "B51"]
[WhiteElo "2371"]
[BlackElo "2219"]
[Annotator "ChessBase"]
[PlyCount "99"]
[EventDate "2022.09.07"]
[EventType "team-tourn"]
[EventCountry "CHN"]
[SourceTitle "playchess.com"]
[Source "ChessBase"]
[SourceQuality "1"]
[TimeControl "1500+10"]

1. e4 {[%emt 0:00:02]} c5 {[%emt 0:00:01]} 2. Nf3 {[%emt 0:00:02]} d6 {[%emt 0:00:01]} 3. Bb5+ {[%emt 0:00:03]} Nc6 {[%emt 0:00:14]} 4. O-O {[%emt 0:00:01]} Bd7 {[%emt 0:00:01]} 5. Re1 {[%emt 0:00:03]} Nf6 {[%emt 0:00:02]} 6. h3 {[%emt 0:00:02]} a6 {[%emt 0:00:17]} 7. Bf1 {[%emt 0:00:04]} g6 {[%emt 0:05:20]} 8. c3 {[%emt 0:00:06]} Bg7 {[%emt 0:00:41]} 9. d4 {[%emt 0:00:01]} cxd4 {[%emt 0:00:55]} 10. cxd4 {[%emt 0:00:01]} d5 {[%emt 0:00:55]} 11. e5 {[%emt 0:00:41]} Ne4 {[%emt 0:00:01]} 12. Be3 {[%emt 0:01:46]} O-O {[%emt 0:00:08]} 13. Nbd2 {[%emt 0:00:11]} Nxd2 {[%emt 0:03:13]} 14. Qxd2 {[%emt 0:00:03]} Qb6 {[%emt 0:00:59]} 15. Rac1 {[%emt 0:01:00]} Rac8 {[%emt 0:00:06]} 16. Rc5 {[%emt 0:00:59]} e6 {[%emt 0:01:01]} 17. Rec1 {[%emt 0:00:04]} Ne7 {[%emt 0:00:11]} 18. b4 {[%emt 0:02:17]} Rfe8 {[%emt 0:00:41]} 19. a3 {[%emt 0:00:26]} Bf8 {[%emt 0:00:14]} 20. Bh6 {[%emt 0:00:42]} Bxh6 {[%emt 0:02:49]} 21. Qxh6 {[%emt 0:00:01]} Nf5 {[%emt 0:00:05]} 22. Qf4 {[%emt 0:00:45]} Rxc5 {[%emt 0:00:18]} 23. Rxc5 {[%emt 0:00:16]} Qd8 {[%emt 0:00:36]} 24. g4 {[%emt 0:00:49]} Nh4 {[%emt 0:00:02]} 25. Nxh4 {[%emt 0:00:15]} Qxh4 {[%emt 0:00:02]} 26. Rc7 {[%emt 0:00:01]} Qd8 {[%emt 0:00:25]} 27. Rxb7 {[%emt 0:00:29]} Rf8 {[%emt 0:00:22]} 28. Qc1 {[%emt 0:08:09]} Ba4 {[%emt 0:00:17]} 29. Bxa6 {[%emt 0:01:41]} Qh4 {[%emt 0:01:34]} 30. Bf1 {[%emt 0:00:59]} h5 {[%emt 0:00:02]} 31. Qf4 {[%emt 0:00:29]} hxg4 {[%emt 0:01:17]} 32. Qxg4 {[%emt 0:01:21]} Qh6 {[%emt 0:00:04]} 33. Rc7 {[%emt 0:00:39]} Qd2 {[%emt 0:00:31]} 34. b5 {[%emt 0:01:10]} Bd1 {[%emt 0:02:03]} 35. Qh4 {[%emt 0:00:02]} Qa5 {[%emt 0:00:06]} 36. Rc1 {[%emt 0:00:47]} Qd2 {[%emt 0:00:32]} 37. Rc5 {[%emt 0:00:35]} g5 {[%emt 0:01:08]} 38. Qh6 {[%emt 0:00:48]} Qxd4 {[%emt 0:00:45]} 39. Rc1 {[%emt 0:01:18]} Qd2 {[%emt 0:00:14]} 40. Rb1 {[%emt 0:00:30]} Bc2 {[%emt 0:00:38]} 41. Rb4 {[%emt 0:00:25]} d4 {[%emt 0:00:48]} 42. b6 {[%emt 0:00:05]} Be4 {[%emt 0:00:23]} 43. h4 {[%emt 0:00:21]} Qd1 {[%emt 0:00:16]} 44. b7 {[%emt 0:01:28]} Qf3 {[%emt 0:00:53]} 45. hxg5 {[%emt 0:00:05]} Qg4+ {[%emt 0:00:12]} 46. Kh2 {[%emt 0:00:03]} Qf4+ {[%emt 0:00:05]} 47. Kg1 {[%emt 0:00:07]} Qg4+ {[%emt 0:00:10]} 48. Kh2 {[%emt 0:00:01]} Qf4+ {[%emt 0:00:01]} 49. Kg1 {[%emt 0:00:06]} Qg4+ {[%emt 0:00:13]} 50. Kh2 {[%emt 0:00:02]} 1/2-1/2

[Event "Chinese League Div-A Rapid 2022"]
[Site "Fuling,Chongqing"]
[Date "2022.09.15"]
[Round "8.6"]
[White "Xiao, Tong"]
[Black "Li, Di"]
[Result "0-1"]
[ECO "C67"]
[WhiteElo "2027"]
[BlackElo "2575"]
[Annotator "ChessBase"]
[PlyCount "108"]
[EventDate "2022.09.07"]
[EventType "team-tourn"]
[EventCountry "CHN"]
[SourceTitle "playchess.com"]
[Source "ChessBase"]
[SourceQuality "1"]
[TimeControl "1500+10"]

1. e4 {[%emt 0:00:02]} e5 {[%emt 0:00:01]} 2. Nf3 {[%emt 0:00:02]} Nc6 {[%emt 0:00:02]} 3. Bb5 {[%emt 0:00:03]} Nf6 {[%emt 0:00:02]} 4. O-O {[%emt 0:00:18]} Nxe4 {[%emt 0:00:02]} 5. d4 {[%emt 0:00:46]} Nd6 {[%emt 0:00:02]} 6. Bxc6 {[%emt 0:00:07]} dxc6 {[%emt 0:00:01]} 7. dxe5 {[%emt 0:00:01]} Nf5 {[%emt 0:00:02]} 8. Qxd8+ {[%emt 0:00:03]} Kxd8 {[%emt 0:00:01]} 9. Nc3 {[%emt 0:00:01]} Ke8 {[%emt 0:00:09]} 10. b3 {[%emt 0:00:09]} Bb4 {[%emt 0:00:50]} 11. Ne4 {[%emt 0:00:23]} Be6 {[%emt 0:03:58]} 12. c4 {[%emt 0:01:20]} Be7 {[%emt 0:03:10]} 13. Bb2 {[%emt 0:00:08]} h5 {[%emt 0:01:00]} 14. Rad1 {[%emt 0:00:29]} a5 {[%emt 0:00:07]} 15. Rfe1 {[%emt 0:01:08]} Rh6 {[%emt 0:02:01]} 16. Nd4 {[%emt 0:01:46]} Nxd4 {[%emt 0:00:00]} 17. Bxd4 {[%emt 0:00:07]} h4 {[%emt 0:01:18]} 18. f3 {[%emt 0:00:30]} a4 {[%emt 0:00:38]} 19. Ra1 {[%emt 0:01:21]} b6 {[%emt 0:01:44]} 20. Kf2 {[%emt 0:00:11]} Rh5 {[%emt 0:00:10]} 21. Bc3 {[%emt 0:02:49]} c5 {[%emt 0:00:30]} 22. Ke3 {[%emt 0:00:21]} Kd7 {[%emt 0:00:12]} 23. Red1+ {[%emt 0:00:18]} Kc6 {[%emt 0:00:04]} 24. Bb2 {[%emt 0:02:02]} Rf8 {[%emt 0:03:38]} 25. Kf2 {[%emt 0:00:21]} Ra8 {[%emt 0:01:03]} 26. Ke3 {[%emt 0:00:20]} Bg5+ {[%emt 0:00:20]} 27. f4 {[%emt 0:00:43]} Be7 {[%emt 0:00:12]} 28. Rf1 {[%emt 0:00:09]} Bf5 {[%emt 0:01:05]} 29. Rad1 {[%emt 0:02:43]} Rhh8 {[%emt 0:00:41]} 30. Rd2 {[%emt 0:00:21]} Rhd8 {[%emt 0:00:25]} 31. Rfd1 {[%emt 0:00:16]} Rxd2 {[%emt 0:00:03]} 32. Rxd2 {[%emt 0:00:02]} axb3 {[%emt 0:00:29]} 33. axb3 {[%emt 0:00:02]} b5 {[%emt 0:00:36]} 34. Nc3 {[%emt 0:00:19]} bxc4 {[%emt 0:00:14]} 35. bxc4 {[%emt 0:00:03]} Bf8 {[%emt 0:00:37]} 36. Kf3 {[%emt 0:00:39]} Rb8 {[%emt 0:00:45]} 37. Nd5 {[%emt 0:00:20]} Rb3+ {[%emt 0:00:11]} 38. Ne3 {[%emt 0:00:10]} g6 {[%emt 0:00:27]} 39. g3 {[%emt 0:00:12]} hxg3 {[%emt 0:00:29]} 40. hxg3 {[%emt 0:00:00]} Bd3 {[%emt 0:00:17]} 41. g4 {[%emt 0:01:42]} Bxc4 {[%emt 0:00:21]} 42. Ke4 {[%emt 0:00:07]} Ba6 {[%emt 0:01:06]} 43. Rh2 {[%emt 0:03:27]} Bd3+ {[%emt 0:00:09]} 44. Kf3 {[%emt 0:00:01]} c4 {[%emt 0:00:03]} 45. Bd4 {[%emt 0:02:17]} c3 {[%emt 0:00:01]} 46. f5 {[%emt 0:00:16]} gxf5 {[%emt 0:00:45]} 47. gxf5 {[%emt 0:00:12]} c2 {[%emt 0:00:09]} 48. Nxc2 {[%emt 0:00:04]} Bxc2+ {[%emt 0:00:02]} 49. Kf4 {[%emt 0:00:01]} Bb1 {[%emt 0:00:38]} 50. Rh8 {[%emt 0:00:22]} Ba3 {[%emt 0:00:19]} 51. e6 {[%emt 0:00:19]} Rb5 {[%emt 0:00:39]} 52. Rh1 {[%emt 0:00:47]} Rxf5+ {[%emt 0:00:16]} 53. Kg4 {[%emt 0:00:02]} Be4 {[%emt 0:00:08]} 54. Ra1 {[%emt 0:00:19]} Bd6 {[%emt 0:00:12]} 0-1

[Event "Chinese League Div-A Rapid 2022"]
[Site "Fuling,Chongqing"]
[Date "2022.09.15"]
[Round "8.7"]
[White "Zhou, Weiqi"]
[Black "Xu, Xiangyu"]
[Result "1/2-1/2"]
[ECO "D27"]
[WhiteElo "2597"]
[BlackElo "2571"]
[Annotator "ChessBase"]
[PlyCount "94"]
[EventDate "2022.09.07"]
[EventType "team-tourn"]
[EventCountry "CHN"]
[SourceTitle "playchess.com"]
[Source "ChessBase"]
[SourceQuality "1"]
[TimeControl "1500+10"]

1. d4 {[%emt 0:00:02]} Nf6 {[%emt 0:00:02]} 2. Nf3 {[%emt 0:00:02]} d5 {[%emt 0:00:02]} 3. c4 {[%emt 0:00:02]} e6 {[%emt 0:00:01]} 4. Nc3 {[%emt 0:00:02]} dxc4 {[%emt 0:00:02]} 5. e3 {[%emt 0:00:42]} a6 {[%emt 0:00:04]} 6. a4 {[%emt 0:00:16]} c5 {[%emt 0:00:02]} 7. Bxc4 {[%emt 0:00:04]} Nc6 {[%emt 0:00:02]} 8. O-O {[%emt 0:00:06]} Be7 {[%emt 0:00:02]} 9. dxc5 {[%emt 0:00:12]} Qxd1 {[%emt 0:00:03]} 10. Rxd1 {[%emt 0:00:01]} Bxc5 {[%emt 0:00:03]} 11. b3 {[%emt 0:00:51]} Be7 {[%emt 0:00:01]} 12. Bb2 {[%emt 0:01:05]} O-O {[%emt 0:00:07]} 13. h3 {[%emt 0:02:50]} b6 {[%emt 0:01:17]} 14. e4 {[%emt 0:01:34]} Nd7 {[%emt 0:01:08]} 15. Rac1 {[%emt 0:03:54]} Na5 {[%emt 0:00:43]} 16. Nd4 {[%emt 0:00:58]} Nc5 {[%emt 0:01:59]} 17. Ba3 {[%emt 0:00:46]} Re8 {[%emt 0:00:03]} 18. Bxc5 {[%emt 0:04:19]} Bxc5 {[%emt 0:00:04]} 19. Na2 {[%emt 0:00:07]} Rd8 {[%emt 0:02:45]} 20. b4 {[%emt 0:00:17]} Bxd4 {[%emt 0:00:12]} 21. bxa5 {[%emt 0:00:02]} bxa5 {[%emt 0:00:07]} 22. Bd5 {[%emt 0:00:01]} Bxf2+ {[%emt 0:02:39]} 23. Kxf2 {[%emt 0:00:02]} exd5 {[%emt 0:00:02]} 24. Nc3 {[%emt 0:00:59]} Bd7 {[%emt 0:03:20]} 25. Rxd5 {[%emt 0:00:52]} Be8 {[%emt 0:00:24]} 26. Ke3 {[%emt 0:00:16]} Rdc8 {[%emt 0:01:12]} 27. Rxa5 {[%emt 0:01:06]} Rc4 {[%emt 0:00:27]} 28. Kd2 {[%emt 0:00:07]} Kf8 {[%emt 0:00:52]} 29. Rb1 {[%emt 0:01:11]} Rd8+ {[%emt 0:00:20]} 30. Rd5 {[%emt 0:00:02]} Rdc8 {[%emt 0:00:03]} 31. Rb3 {[%emt 0:00:42]} Bxa4 {[%emt 0:00:03]} 32. Ra3 {[%emt 0:01:10]} Bc6 {[%emt 0:00:07]} 33. Rd3 {[%emt 0:00:40]} Bb7 {[%emt 0:00:14]} 34. Ke3 {[%emt 0:00:01]} h5 {[%emt 0:00:46]} 35. g4 {[%emt 0:00:07]} hxg4 {[%emt 0:03:16]} 36. hxg4 {[%emt 0:00:00]} Re8 {[%emt 0:00:56]} 37. Rd4 {[%emt 0:00:08]} Rxd4 {[%emt 0:00:01]} 38. Kxd4 {[%emt 0:00:01]} f6 {[%emt 0:00:02]} 39. Ra5 {[%emt 0:00:50]} g5 {[%emt 0:00:43]} 40. Rc5 {[%emt 0:00:50]} Kf7 {[%emt 0:01:15]} 41. Rc7+ {[%emt 0:01:24]} Re7 {[%emt 0:00:01]} 42. Rc5 {[%emt 0:00:02]} Kg6 {[%emt 0:00:28]} 43. Nd5 {[%emt 0:00:02]} Rh7 {[%emt 0:00:26]} 44. Rc4 {[%emt 0:00:26]} a5 {[%emt 0:03:22]} 45. Ra4 {[%emt 0:00:01]} Rh4 {[%emt 0:00:37]} 46. Ne3 {[%emt 0:00:02]} Bc8 {[%emt 0:00:11]} 47. Nf5 {[%emt 0:00:43]} Bxf5 {[%emt 0:00:14]} 1/2-1/2